bitfinex/quotes_BTCUSD_20241117
["timestamp","ask_amount","ask_price","bid_price","bid_amount"]
[1731818936456,0.1659999,90390.0,90383.0,0.11064]
[1731818936457,0.110633,90389.0,90383.0,0.11064]
[1731818936692,0.1659999,90400.0,90371.0,0.18107429]
[1731818936693,0.110623,90397.0,90380.0,0.18107429]
[1731818936918,0.1668556,90402.0,90388.0,0.18107429]
[1731818937147,0.110618,90401.0,90391.0,0.22126]
[1731818937405,0.110618,90401.0,90380.0,0.0764]
[1731818937406,0.110618,90401.0,90393.0,0.110627]
[1731818937636,0.110618,90401.0,90382.0,0.221282]
[1731818937637,0.0008557,90402.0,90385.0,0.1659999]
[1731818938174,0.0008557,90402.0,90397.0,0.110622]
[1731818938429,0.0008557,90402.0,90385.0,0.1659999]
[1731818938685,0.110619,90400.0,90393.0,0.110627]
[1731818939198,0.110619,90400.0,90394.0,0.110626]
[1731818939704,0.0008557,90402.0,90391.0,0.221259]
[1731818939993,0.0008557,90402.0,90398.0,0.110621]
[1731818940217,0.221238,90400.0,90385.0,0.1659999]
[1731818940459,0.0008557,90402.0,90391.0,0.110629]
[1731818940681,0.110621,90399.0,90391.0,0.110629]
[1731818940920,0.221236,90401.0,90385.0,0.1659999]
[1731818941150,0.221276,90385.0,90373.0,0.221304]
[1731818941381,0.110637,90385.0,90384.0,0.1659999]
[1731818941610,0.10906255,90400.0,90370.0,0.0764]
[1731818941611,0.221263,90390.0,90370.0,0.0764]
[1731818941842,0.221246,90397.0,90377.0,0.110647]
[1731818942077,0.16821195,90399.0,90370.0,0.2766559]
[1731818942078,0.110648,90377.0,90370.0,0.2766559]
[1731818942321,0.221272,90387.0,90370.0,0.1659999]
[1731818942574,0.221272,90387.0,90372.0,0.221307]
[1731818942575,0.110642,90381.0,90372.0,0.221307]
[1731818942817,0.11064,90384.0,90376.0,0.110648]
[1731818943064,0.221273,90386.0,90370.0,0.1659999]
[1731818943293,0.221258,90392.0,90370.0,0.1659999]
[1731818943510,0.01250798,90391.0,90370.0,0.1659999]
[1731818943753,0.110641,90383.0,90375.0,0.110648]
[1731818944009,0.23156093,90389.0,90370.0,0.1659999]
[1731818944320,0.01029593,90395.0,90371.0,0.26732783]
[1731818944523,0.1659999,90395.0,90390.0,0.11063]
[1731818944759,0.1659999,90395.0,90387.0,0.221269]
[1731818944760,0.110628,90393.0,90387.0,0.110634]
[1731818945011,0.110628,90393.0,90372.0,0.1]
[1731818945012,0.0008557,90402.0,90401.0,0.110618]
[1731818945502,0.0008557,90402.0,90391.0,0.26511518]
[1731818945503,0.0008557,90402.0,90397.0,0.110622]
[1731818945754,0.0008557,90402.0,90395.0,0.442502]
[1731818946054,0.0008557,90402.0,90394.0,0.1]
[1731818946310,0.11061,90408.0,90396.0,0.221248]
[1731818946560,0.11061,90408.0,90394.0,0.1]
[1731818946561,0.10906255,90414.0,90397.0,0.221246]
[1731818946835,0.221194,90418.0,90397.0,0.00221217]
[1731818947055,0.1106,90416.0,90409.0,0.110608]
[1731818947283,0.221194,90418.0,90408.0,0.110609]
[1731818947512,0.002,90435.0,90393.0,0.1]
[1731818947744,0.1112746,90429.0,90402.0,0.1659999]
[1731818947958,0.1106,90416.0,90404.0,0.221229]
[1731818948225,0.1112746,90429.0,90408.0,0.110608]
[1731818948507,0.1112746,90429.0,90402.0,0.1659999]
[1731818948761,0.11061,90408.0,90402.0,0.1659999]
[1731818949015,0.1112746,90429.0,90402.0,0.1659999]
[1731818949016,0.22117,90428.0,90402.0,0.1659999]
[1731818949244,0.221192,90420.0,90403.0,0.223441]
[1731818949517,0.22117,90428.0,90413.0,0.110602]
[1731818949518,0.110596,90419.0,90413.0,0.110602]
[1731818949961,0.221161,90432.0,90416.0,0.221197]
[1731818950259,0.221161,90432.0,90413.0,0.00221186]
[1731818950260,0.1659999,90430.0,90422.0,0.110592]
[1731818950486,0.267036,90442.0,90413.0,0.221206]
[1731818950487,0.1659999,90431.0,90413.0,0.221206]
[1731818950727,0.0509,90442.0,90422.0,0.110591]
[1731818950728,0.110586,90428.0,90422.0,0.110591]
[1731818951510,0.221165,90430.0,90421.0,0.110593]
[1731818951758,0.110586,90427.0,90421.0,0.110593]
[1731818952000,0.221157,90434.0,90423.0,0.11059]
[1731818952245,0.110585,90428.0,90421.0,0.110593]
[1731818952486,0.33021955,90434.0,90413.0,0.221207]
[1731818952487,0.221158,90433.0,90413.0,0.221207]
[1731818952747,0.221158,90433.0,90419.0,0.22119]
[1731818952997,0.110582,90431.0,90424.0,0.110588]
[1731818953304,0.10906255,90434.0,90423.0,0.110591]
[1731818953305,0.22116,90432.0,90423.0,0.110591]
[1731818953480,0.007,90450.0,90423.0,0.110591]
[1731818953481,0.110574,90438.0,90424.0,0.00221165]
[1731818953700,0.1679999,90454.0,90415.0,0.2212]
[1731818953701,0.1659999,90440.0,90415.0,0.2212]
[1731818953967,0.110576,90436.0,90423.0,0.221182]
[1731818954187,0.10906255,90447.0,90424.0,0.00221146]
[1731818954403,0.10906255,90447.0,90425.0,0.0816]
[1731818954664,0.221126,90446.0,90433.0,0.221157]
[1731818954885,0.221126,90446.0,90430.0,0.221165]
[1731818955123,0.221126,90446.0,90426.0,0.00221133]
[1731818955124,0.221106,90455.0,90432.0,0.1659999]
[1731818955341,0.11056,90449.0,90441.0,0.110568]
[1731818955574,0.10906255,90455.0,90434.0,0.221155]
[1731818955804,0.221106,90454.0,90442.0,0.110567]
[1731818956048,0.110562,90447.0,90433.0,0.26511518]
[1731818956266,0.110565,90445.0,90433.0,0.221158]
[1731818956484,0.110561,90448.0,90440.0,0.110569]
[1731818956910,0.110561,90448.0,90440.0,0.11057]
[1731818957137,0.110562,90447.0,90440.0,0.11057]
[1731818957561,0.110562,90447.0,90435.0,0.221153]
[1731818957562,0.110562,90447.0,90441.0,0.110569]
[1731818957841,0.110562,90447.0,90429.0,0.221165]
[1731818957842,0.00221205,90449.0,90426.0,0.1]
[1731818958057,0.11056,90448.0,90434.0,0.1659999]
[1731818958313,0.0008584,90456.0,90434.0,0.1659999]
[1731818958555,0.0008584,90456.0,90429.0,0.110583]
[1731818958556,0.110554,90453.0,90429.0,0.110583]
[1731818958793,0.110554,90453.0,90428.0,0.1]
[1731818958794,0.1112746,90452.0,90433.0,0.1659999]
[1731818959261,0.1112746,90452.0,90433.0,0.2765779]
[1731818959464,0.110569,90441.0,90434.0,0.110577]
[1731818959908,0.442246,90447.0,90433.0,0.1659999]
[1731818959909,0.221123,90447.0,90433.0,0.1659999]
[1731818960125,0.0008563,90450.0,90433.0,0.1659999]
[1731818960126,0.110566,90444.0,90436.0,0.110574]
[1731818960413,0.221119,90449.0,90436.0,0.110574]
[1731818960414,0.110566,90443.0,90436.0,0.110574]
[1731818961092,0.102568,90442.0,90436.0,0.110574]
[1731818961516,0.10991885,90450.0,90433.0,0.1659999]
[1731818961725,0.110563,90446.0,90438.0,0.110571]
[1731818961958,0.110563,90446.0,90433.0,0.1659999]
[1731818961959,0.10991885,90450.0,90433.0,0.1659999]
[1731818962198,0.11057,90441.0,90434.0,0.110577]
[1731818962674,0.11057,90441.0,90428.0,0.1]
[1731818962675,0.221119,90449.0,90431.0,0.11058]
[1731818962862,0.11057,90441.0,90428.0,0.321169]
[1731818963149,0.331678,90449.0,90433.0,0.2765779]
[1731818963352,0.10991885,90450.0,90434.0,0.110576]
[1731818963353,0.110569,90441.0,90434.0,0.110576]
[1731818963543,0.221123,90447.0,90435.0,0.110576]
[1731818963787,0.221121,90448.0,90435.0,0.110576]
[1731818964055,0.110565,90445.0,90426.0,0.1]
[1731818964278,0.11056,90449.0,90442.0,0.110566]
[1731818964496,0.1114143,90450.0,90444.0,0.110565]
[1731818964750,0.1114143,90450.0,90449.0,0.110559]
[1731818964751,0.0008563,90450.0,90449.0,0.110559]
[1731818964968,0.0008563,90450.0,90444.0,0.110564]
[1731818965219,0.0008563,90450.0,90442.0,0.18067978]
[1731818965220,0.0008563,90450.0,90449.0,0.110559]
[1731818967044,0.0008563,90450.0,90436.0,0.26680469]
[1731818967311,0.0008563,90450.0,90442.0,0.34667968]
[1731818967518,0.0008563,90450.0,90449.0,0.110559]
[1731818968390,0.0008563,90450.0,90449.0,0.11276993]
[1731818968613,0.0008563,90450.0,90449.0,0.110559]
[1731818968827,0.0008563,90450.0,90449.0,0.11276989]
[1731818969783,0.0008563,90450.0,90449.0,0.21276989]
[1731818970525,0.0008563,90450.0,90449.0,0.31962155]
[1731818970755,0.0008584,90462.0,90449.0,0.31962155]
[1731818970756,0.0008584,90462.0,90461.0,0.312644]
[1731818970974,0.0008584,90462.0,90461.0,0.61238633]
[1731818971221,0.0008584,90474.0,90473.0,0.47030978]
[1731818971442,0.0008584,90474.0,90473.0,0.58437233]
[1731818972115,0.0008562,90480.0,90477.0,0.005]
[1731818972377,0.0008562,90480.0,90479.0,0.210522]
[1731818972597,0.0008562,90480.0,90479.0,0.31958455]
[1731818972874,0.0008562,90480.0,90479.0,0.53772853]
[1731818973125,0.0008562,90480.0,90479.0,0.62151784]
[1731818973553,0.0008562,90480.0,90479.0,0.47499109]
[1731818974269,0.0008562,90480.0,90479.0,0.58405364]
[1731818974722,0.0008562,90480.0,90479.0,0.47499109]
[1731818974941,0.0008562,90480.0,90479.0,0.210522]
[1731818975160,0.01112043,90480.0,90479.0,0.210522]
[1731818975882,0.01112043,90480.0,90479.0,0.110522]
[1731818976097,0.01112043,90480.0,90465.0,0.48554609]
[1731818976098,0.01112043,90480.0,90465.0,0.30828831]
[1731818976351,0.0008562,90480.0,90479.0,0.110522]
[1731818976798,0.110514,90486.0,90480.0,0.110521]
[1731818977012,0.005,90512.0,90466.0,0.33013955]
[1731818977013,0.01026666,90480.0,90475.0,0.110526]
[1731818977232,0.03080005,90479.0,90476.0,0.110525]
[1731818977441,0.03080005,90479.0,90473.0,0.221059]
[1731818977442,0.03080005,90478.0,90477.0,0.110524]
[1731818977876,0.03080005,90478.0,90467.0,0.1]
[1731818978111,0.017111,90483.0,90476.0,0.110526]
[1731818978112,0.03080005,90477.0,90476.0,0.110526]
[1731818978377,0.00221205,90487.0,90476.0,0.110526]
[1731818978378,5e-08,90489.0,90485.0,0.110515]
[1731818978564,5e-08,90489.0,90476.0,0.37353164]
[1731818978565,0.03285229,90518.0,90492.0,0.215507]
[1731818978786,0.1659999,90510.0,90492.0,0.29441647]
[1731818979008,0.1659999,90510.0,90492.0,0.292207]
[1731818979309,0.1659999,90510.0,90492.0,0.40126955]
[1731818979770,0.1659999,90510.0,90492.0,0.37326955]
[1731818980010,0.2773282,90520.0,90492.0,0.37326955]
[1731818980011,0.1668562,90520.0,90492.0,0.37326955]
[1731818980206,0.03282874,90518.0,90492.0,0.37326955]
[1731818980454,0.03282874,90517.0,90492.0,0.37326955]
[1731818980703,0.03282874,90516.0,90492.0,0.40126955]
[1731818980942,0.03282874,90515.0,90492.0,0.40126955]
[1731818981160,0.1668562,90520.0,90492.0,0.40126955]
[1731818981601,0.03280137,90518.0,90492.0,0.40126955]
[1731818981831,0.1668562,90520.0,90492.0,0.37826955]
[1731818982261,0.03280126,90518.0,90492.0,0.37826955]
[1731818982513,0.1659999,90510.0,90492.0,0.32956955]
[1731818982728,0.1668562,90520.0,90492.0,0.32956955]
[1731818982946,0.0327934,90518.0,90492.0,0.32956955]
[1731818983185,0.0327934,90517.0,90492.0,0.31956955]
[1731818983433,0.0327934,90516.0,90492.0,0.31956955]
[1731818983647,0.0327934,90515.0,90492.0,0.32456955]
[1731818983864,0.0008563,90519.0,90492.0,0.32456955]
[1731818983865,0.0327934,90514.0,90492.0,0.32456955]
[1731818984112,0.0008563,90519.0,90492.0,0.32456955]
[1731818984113,0.0327934,90513.0,90492.0,0.32456955]
[1731818984345,0.0008563,90519.0,90492.0,0.32456955]
[1731818984560,0.03278685,90518.0,90492.0,0.32456955]
[1731818984809,0.03278685,90517.0,90492.0,0.32456955]
[1731818985061,0.1113303,90519.0,90492.0,0.32456955]
[1731818985294,0.03278696,90518.0,90492.0,0.32456955]
[1731818985534,0.1113303,90519.0,90492.0,0.32456955]
[1731818985535,0.03278696,90517.0,90492.0,0.32456955]
[1731818985771,0.03278696,90516.0,90492.0,0.32456955]
[1731818985984,0.1113303,90519.0,90492.0,0.32456955]
[1731818986205,0.03278496,90515.0,90492.0,0.32456955]
[1731818986449,0.0008563,90519.0,90492.0,0.32456955]
[1731818986661,0.03278281,90518.0,90492.0,0.32456955]
[1731818986908,0.0008563,90519.0,90492.0,0.32456955]
[1731818987113,0.03278293,90518.0,90492.0,0.32456955]
[1731818987321,0.1113303,90519.0,90492.0,0.32456955]
[1731818987322,0.03278293,90517.0,90492.0,0.32456955]
[1731818987537,0.1113303,90519.0,90492.0,0.32456955]
[1731818987992,0.03278288,90518.0,90492.0,0.32456955]
[1731818988280,0.03278288,90517.0,90492.0,0.32456955]
[1731818988452,0.03278288,90516.0,90492.0,0.32456955]
[1731818988711,0.03278288,90515.0,90492.0,0.32456955]
[1731818988927,0.03278288,90514.0,90492.0,0.32456955]
[1731818989136,0.03278288,90513.0,90492.0,0.32456955]
[1731818989398,0.110476,90518.0,90492.0,0.31956955]
[1731818989659,0.03279661,90517.0,90492.0,0.32456955]
[1731818989874,0.03279661,90516.0,90492.0,0.32456955]
[1731818990111,0.0008563,90519.0,90492.0,0.32456955]
[1731818990357,0.0533058,90518.0,90492.0,0.32456955]
[1731818990594,0.02050223,90517.0,90492.0,0.32456955]
[1731818990839,0.02050223,90516.0,90492.0,0.32456955]
[1731818991045,0.02050223,90515.0,90492.0,0.32456955]
[1731818991263,0.0328054,90514.0,90492.0,0.32456955]
[1731818991504,0.0328054,90513.0,90492.0,0.32456955]
[1731818991715,0.0256634,90512.0,90495.0,0.005]
[1731818991969,0.02050958,90511.0,90501.0,0.1]
[1731818992194,0.02050958,90510.0,90501.0,0.1]
[1731818992406,0.110494,90502.0,90501.0,0.1]
[1731818992622,0.13100358,90502.0,90501.0,0.1]
[1731818992838,0.13100358,90502.0,90496.0,0.1]
[1731818993076,0.02050958,90501.0,90499.0,0.1]
[1731818993309,0.00221205,90506.0,90499.0,0.1]
[1731818993310,0.02050958,90500.0,90499.0,0.1]
[1731818994291,0.02050958,90500.0,90499.0,0.210498]
[1731818994946,0.110476,90517.0,90512.0,0.110481]
[1731818995158,0.02054555,90516.0,90510.0,0.110484]
[1731818995425,0.02054555,90515.0,90510.0,0.110484]
[1731818995663,0.02054555,90515.0,90509.0,0.110486]
[1731818995664,0.02054555,90514.0,90509.0,0.110486]
[1731818996074,0.33001355,90518.0,90506.0,0.220979]
[1731818996075,0.02055611,90513.0,90506.0,0.220979]
[1731818996317,0.02055611,90512.0,90510.0,0.110484]
[1731818996549,0.110476,90517.0,90512.0,0.110481]
[1731818996793,0.02056654,90516.0,90512.0,0.110481]
[1731818997006,0.02056654,90515.0,90510.0,0.110484]
[1731818997270,0.02056654,90514.0,90510.0,0.110484]
[1731818997526,0.02056654,90513.0,90512.0,0.110482]
[1731818998885,0.0008563,90519.0,90506.0,0.18044138]
[1731818999109,0.02059227,90513.0,90512.0,0.210482]
[1731818999348,0.0008563,90519.0,90518.0,0.1]
[1731818999535,0.0214623,90519.0,90518.0,0.210475]
[1731819000028,0.0214623,90519.0,90518.0,0.1]
[1731819000310,0.110477,90517.0,90510.0,0.110484]
[1731819000536,0.0214623,90519.0,90512.0,0.220965]
[1731819000537,0.01116662,90519.0,90512.0,0.220965]
[1731819000752,0.02062046,90518.0,90513.0,0.220962]
[1731819000990,0.02062046,90517.0,90516.0,0.110477]
[1731819001216,0.02062092,90517.0,90516.0,0.110477]
[1731819001440,0.03093165,90517.0,90516.0,0.110477]
[1731819001660,0.110481,90513.0,90506.0,0.1]
[1731819001884,0.05361698,90512.0,90508.0,0.110487]
[1731819002119,0.05361698,90511.0,90506.0,0.210489]
[1731819002408,0.110481,90513.0,90506.0,0.210489]
[1731819002409,0.05361698,90510.0,90506.0,0.210489]
[1731819002630,0.04330553,90517.0,90507.0,0.220977]
[1731819002865,0.01031073,90517.0,90516.0,0.110477]
[1731819003080,0.06393248,90517.0,90516.0,0.110477]
[1731819003991,0.06393248,90517.0,90502.0,0.1]
[1731819004254,0.220962,90514.0,90508.0,0.1659999]
[1731819004465,0.00221205,90516.0,90502.0,0.1]
[1731819004466,0.03299757,90513.0,90502.0,0.1]
[1731819004697,0.110485,90510.0,90509.0,0.1659999]
[1731819004948,0.03300186,90510.0,90495.0,0.1709999]
[1731819005212,0.02062616,90512.0,90495.0,0.1709999]
[1731819005213,0.03300186,90509.0,90508.0,0.110487]
[1731819005428,0.02062616,90509.0,90508.0,0.110487]
[1731819006745,0.01236959,90509.0,90508.0,0.110487]
[1731819007481,0.220955,90516.0,90496.0,0.221002]
[1731819007740,0.10906255,90509.0,90496.0,0.1]
[1731819007975,0.1105,90497.0,90496.0,0.1]
[1731819008181,0.10906255,90509.0,90496.0,0.1]
[1731819008395,0.110493,90503.0,90502.0,0.0017092]
[1731819008833,0.2974676,90503.0,90502.0,0.0017092]
[1731819009092,0.29525555,90503.0,90502.0,0.0017092]
[1731819009963,0.34085555,90503.0,90502.0,0.0017092]
[1731819011135,0.34285555,90503.0,90502.0,0.0017092]
[1731819011378,0.3789191,90503.0,90502.0,0.0017092]
[1731819011598,0.40192043,90503.0,90502.0,0.0017092]
[1731819011824,0.40692043,90503.0,90502.0,0.0017092]
[1731819012094,0.40692043,90503.0,90482.0,0.1659999]
[1731819012095,0.0483,90488.0,90482.0,0.1659999]
[1731819012313,0.110517,90483.0,90482.0,0.1659999]
[1731819012597,0.25264443,90483.0,90482.0,0.1659999]
[1731819012827,0.11053,90473.0,90472.0,0.1587913]
[1731819013249,0.00221205,90474.0,90459.0,0.110547]
[1731819013250,0.221066,90471.0,90459.0,0.110547]
[1731819013427,0.33010255,90482.0,90454.0,0.221105]
[1731819013428,0.110542,90463.0,90454.0,0.221105]
[1731819013676,0.22108,90465.0,90452.0,0.34644128]
[1731819013920,0.00221205,90464.0,90452.0,0.1659999]
[1731819014168,0.110554,90453.0,90452.0,0.1659999]
[1731819014402,0.110554,90454.0,90452.0,0.1659999]
[1731819014674,0.110555,90453.0,90449.0,0.00171]
[1731819014917,0.11055,90457.0,90450.0,0.110557]
[1731819015198,0.0483,90468.0,90449.0,0.00171]
[1731819015199,0.221087,90463.0,90449.0,0.00171]
[1731819015438,0.110547,90459.0,90451.0,0.110556]
[1731819015651,0.10906255,90463.0,90451.0,0.110556]
[1731819015652,0.110548,90458.0,90451.0,0.110556]
[1731819015887,0.03294911,90472.0,90449.0,0.00171]
[1731819015888,0.03294911,90471.0,90452.0,0.1659999]
[1731819016120,0.1659999,90470.0,90454.0,0.221106]
[1731819016342,0.22109,90461.0,90451.0,0.1]
[1731819016554,0.22109,90461.0,90453.0,0.1659999]
[1731819016777,0.10906255,90470.0,90454.0,0.221106]
[1731819017001,0.110538,90467.0,90460.0,0.110545]
[1731819017269,0.110538,90467.0,90455.0,0.221104]
[1731819017270,0.110538,90466.0,90459.0,0.110546]
[1731819017479,0.110538,90466.0,90453.0,0.1659999]
[1731819017480,0.10906255,90469.0,90461.0,0.110544]
[1731819017731,0.10906255,90469.0,90458.0,0.110547]
[1731819017732,0.11054,90465.0,90458.0,0.110547]
[1731819017981,0.110537,90468.0,90457.0,0.00221083]
[1731819018196,0.221055,90475.0,90453.0,0.1659999]
[1731819018415,0.22106,90473.0,90460.0,0.110545]
[1731819018680,0.110539,90466.0,90460.0,0.110545]
[1731819018929,0.22106,90473.0,90461.0,0.110544]
[1731819019122,0.110539,90466.0,90458.0,0.110547]
[1731819019337,0.110537,90468.0,90454.0,0.221106]
[1731819019523,0.110537,90468.0,90460.0,0.110544]
[1731819019809,0.02056268,90474.0,90455.0,0.221104]
[1731819020023,0.10906255,90475.0,90453.0,0.1659999]
[1731819020024,0.110534,90470.0,90453.0,0.1659999]
[1731819020271,0.110534,90470.0,90453.0,0.1609999]
[1731819020499,0.10906255,90475.0,90453.0,0.1609999]
[1731819020744,0.00221205,90476.0,90453.0,0.1609999]
[1731819020991,0.110539,90466.0,90458.0,0.110547]
[1731819021195,0.10906255,90480.0,90462.0,0.110543]
[1731819021196,0.110535,90470.0,90462.0,0.110543]
[1731819021447,0.110535,90470.0,90464.0,0.110541]
[1731819021656,0.02055845,90477.0,90459.0,0.221094]
[1731819021872,0.110535,90469.0,90461.0,0.110543]
[1731819022091,0.110535,90469.0,90454.0,0.110553]
[1731819022340,0.44211,90475.0,90453.0,0.1609999]
[1731819022341,0.110536,90468.0,90456.0,0.221101]
[1731819022561,0.110535,90469.0,90462.0,0.110542]
[1731819022779,0.110535,90469.0,90463.0,0.110542]
[1731819023221,0.110532,90471.0,90463.0,0.110542]
[1731819023668,0.110529,90474.0,90466.0,0.110537]
[1731819024129,0.110528,90475.0,90463.0,0.221084]
[1731819024568,0.110528,90475.0,90456.0,0.221101]
[1731819024569,0.110528,90475.0,90468.0,0.110536]
[1731819025209,0.11053,90473.0,90466.0,0.110538]
[1731819025433,0.11053,90473.0,90467.0,0.110537]
[1731819025655,0.11053,90473.0,90455.0,0.221104]
[1731819025656,0.21025074,90484.0,90458.0,0.110547]
[1731819025869,0.11054,90465.0,90458.0,0.110547]
[1731819026114,0.110541,90464.0,90463.0,0.1659999]
[1731819026327,0.110541,90464.0,90450.0,0.221115]
[1731819026328,0.002,90481.0,90450.0,0.221115]
[1731819026622,0.110542,90464.0,90455.0,0.1659999]
[1731819026825,0.10906255,90480.0,90459.0,0.110546]
[1731819027027,0.110541,90464.0,90457.0,0.110549]
[1731819027507,0.110547,90459.0,90455.0,0.1659999]
[1731819027710,0.110548,90459.0,90455.0,0.1659999]
[1731819027970,0.110544,90462.0,90455.0,0.1659999]
[1731819028156,0.110544,90462.0,90452.0,0.221109]
[1731819028157,0.33011255,90477.0,90452.0,0.221109]
[1731819028399,0.110541,90464.0,90458.0,0.110547]
[1731819028659,0.110539,90466.0,90456.0,0.1659999]
[1731819028888,0.10906255,90476.0,90462.0,0.110542]
[1731819029097,0.10906255,90476.0,90458.0,0.221097]
[1731819029345,0.10906255,90476.0,90462.0,0.110542]
[1731819029346,0.110535,90469.0,90462.0,0.110542]
[1731819029782,0.110536,90468.0,90462.0,0.110542]
[1731819030022,0.110537,90467.0,90462.0,0.110542]
[1731819030244,0.110527,90475.0,90458.0,0.110548]
[1731819030491,0.10906255,90472.0,90458.0,0.110548]
[1731819030722,0.11054,90465.0,90458.0,0.110548]
[1731819031207,0.10906255,90472.0,90459.0,0.110547]
[1731819031425,0.22107,90469.0,90459.0,0.110547]
[1731819031857,0.331608,90468.0,90458.0,0.110548]
[1731819032074,0.22107,90469.0,90458.0,0.110548]
[1731819032512,0.221075,90467.0,90458.0,0.110548]
[1731819032760,0.11054,90465.0,90457.0,0.110549]
[1731819032995,0.11054,90465.0,90456.0,0.1659999]
[1731819033212,0.11054,90465.0,90459.0,0.110546]
[1731819033433,0.110542,90464.0,90457.0,0.110548]
[1731819033653,0.110545,90461.0,90454.0,0.110552]
[1731819033870,0.110543,90462.0,90456.0,0.11055]
[1731819034104,0.110544,90462.0,90455.0,0.110551]
[1731819034522,0.110548,90459.0,90452.0,0.2765549]
[1731819034524,0.1659999,90471.0,90451.0,0.0017092]
[1731819034745,0.110555,90452.0,90451.0,0.0017092]
[1731819036105,0.102555,90452.0,90451.0,0.0017092]
[1731819037260,0.110553,90454.0,90451.0,0.0017092]
[1731819037487,0.221075,90467.0,90452.0,0.110555]
[1731819037735,0.110549,90458.0,90452.0,0.110555]
[1731819037963,0.11055,90457.0,90452.0,0.110555]
[1731819038178,0.11055,90457.0,90451.0,0.0017092]
[1731819038419,0.221094,90459.0,90451.0,0.1122662]
[1731819038632,0.110551,90456.0,90451.0,0.0017092]
[1731819038853,0.110555,90452.0,90451.0,0.0017092]
[1731819039726,0.110554,90453.0,90451.0,0.0017092]
[1731819039950,0.110555,90452.0,90451.0,0.0017092]
[1731819040175,0.10906255,90464.0,90443.0,0.221131]
[1731819040176,0.110561,90448.0,90443.0,0.1659999]
[1731819040644,0.110558,90450.0,90444.0,0.110565]
[1731819041092,0.110558,90450.0,90445.0,0.110564]
[1731819041313,0.10906255,90464.0,90442.0,0.0017106]
[1731819041566,0.02066983,90463.0,90443.0,0.00221108]
[1731819041779,0.221102,90456.0,90443.0,0.16821098]
[1731819041997,0.110557,90451.0,90445.0,0.110564]
[1731819042453,0.10906255,90462.0,90442.0,0.0017106]
[1731819042710,0.110566,90443.0,90442.0,0.0017106]
[1731819043709,0.13124482,90443.0,90442.0,0.0017106]
[1731819044155,0.110566,90443.0,90442.0,0.0017106]
[1731819044413,0.13124592,90443.0,90442.0,0.0017106]
[1731819044622,0.16432598,90443.0,90442.0,0.0017106]
[1731819045333,0.17466393,90443.0,90442.0,0.0017106]
[1731819047639,0.17462315,90443.0,90442.0,0.0017106]
[1731819047859,0.110566,90443.0,90442.0,0.0017106]
[1731819048076,0.16428431,90443.0,90442.0,0.0017106]
[1731819048313,0.17461492,90443.0,90442.0,0.0017106]
[1731819050197,0.16428431,90443.0,90442.0,0.0017106]
[1731819050437,0.17461209,90443.0,90442.0,0.0017106]
[1731819051762,0.16661209,90443.0,90442.0,0.0017106]
[1731819051983,0.12322689,90443.0,90442.0,0.0017106]
[1731819052429,0.05370479,90443.0,90442.0,0.0017106]
[1731819052670,0.05370479,90443.0,90442.0,0.1122786]
[1731819052893,0.26484047,90468.0,90451.0,0.110556]
[1731819052894,0.043369,90461.0,90451.0,0.110556]
[1731819053107,0.043369,90461.0,90449.0,0.221118]
[1731819053108,0.1659999,90457.0,90450.0,0.110558]
[1731819053322,0.221085,90463.0,90453.0,0.110554]
[1731819053323,0.05369407,90456.0,90453.0,0.110554]
[1731819053571,0.05369407,90456.0,90449.0,0.221118]
[1731819053572,0.05369407,90455.0,90451.0,0.110556]
[1731819053824,0.110548,90458.0,90451.0,0.110556]
[1731819053825,0.02065102,90454.0,90451.0,0.110556]
[1731819054021,0.02065277,90453.0,90451.0,0.110556]
[1731819054263,0.02065307,90452.0,90451.0,0.110556]
[1731819054472,0.110551,90456.0,90451.0,0.110556]
[1731819054684,0.02065461,90455.0,90451.0,0.110556]
[1731819054927,0.110549,90458.0,90451.0,0.110556]
[1731819055153,0.02065461,90457.0,90452.0,0.110554]
[1731819055381,0.110548,90458.0,90452.0,0.110554]
[1731819055632,0.020657,90457.0,90452.0,0.110554]
[1731819055844,0.110548,90458.0,90452.0,0.110554]
[1731819055845,0.020657,90456.0,90452.0,0.110554]
[1731819056074,0.110548,90458.0,90452.0,0.110554]
[1731819056277,0.02065701,90457.0,90452.0,0.110554]
[1731819056549,0.02065701,90456.0,90452.0,0.110554]
[1731819056790,0.110548,90458.0,90452.0,0.110554]
[1731819057016,0.02065911,90457.0,90452.0,0.110554]
[1731819057244,0.110548,90458.0,90452.0,0.110554]
[1731819057501,0.110554,90454.0,90449.0,0.001711]
[1731819057728,0.02066108,90453.0,90449.0,0.001711]
[1731819057984,0.110558,90450.0,90449.0,0.001711]
[1731819058237,0.02066108,90450.0,90449.0,0.001711]
[1731819060103,0.02066108,90450.0,90449.0,0.11227]
[1731819060376,0.221093,90460.0,90451.0,0.110555]
[1731819060377,0.110549,90458.0,90451.0,0.110555]
[1731819060656,0.02066768,90457.0,90449.0,0.001711]
[1731819060901,0.02066768,90456.0,90451.0,0.110556]
[1731819061116,0.33014455,90465.0,90449.0,0.001711]
[1731819061117,0.02066768,90455.0,90452.0,0.221111]
[1731819061360,0.33014455,90465.0,90452.0,0.110555]
[1731819061574,0.02066956,90464.0,90453.0,0.110553]
[1731819061804,0.110544,90462.0,90450.0,0.221116]
[1731819062031,0.02066956,90463.0,90450.0,0.221116]
[1731819062032,0.02066956,90461.0,90454.0,0.110552]
[1731819062245,0.221093,90460.0,90449.0,0.001711]
[1731819062465,0.110552,90455.0,90449.0,0.11227]
[1731819062905,0.11055,90457.0,90450.0,0.110557]
[1731819063172,0.02067211,90456.0,90449.0,0.001711]
[1731819063395,0.110558,90450.0,90449.0,0.001711]
[1731819063634,0.13123011,90450.0,90449.0,0.001711]
[1731819063890,0.02067211,90450.0,90449.0,0.001711]
[1731819064112,0.02067211,90450.0,90449.0,0.11227]
[1731819064829,0.04421784,90471.0,90449.0,0.10392201]
[1731819064830,0.02068124,90461.0,90449.0,0.10392201]
[1731819065066,0.2765289,90474.0,90467.0,0.110536]
[1731819065307,0.2765289,90474.0,90451.0,0.18044138]
[1731819065308,0.1659999,90474.0,90453.0,0.1]
[1731819065570,0.02067867,90473.0,90471.0,0.110532]
[1731819065826,0.02067867,90473.0,90458.0,0.1]
[1731819065827,0.000855,90477.0,90476.0,0.110526]